Cogmind - Beta 15 @@@ ROGUE MODE // 2025.08.16 @ 11:15:23 Player: Raix Result: Destroyed by D-53 Grenadier with Mini Grenade Launcher Performance ------------- Evolutions (1) 500 Regions Visited (3) 600 Robots Destroyed (39) 195 Value Destroyed (705) 705 Prototype IDs (2) 40 Alien Tech Used (0) 0 Bonus (-17) -17 TOTAL SCORE: 2023 Bonus ------- Friendly Fire -17 Cogmind --------- Core Integrity 0/400 Matter 300/300 Energy 99/100 System Corruption 0% Temperature Cool (0) Movement Walking (120) Location -9/Mines Parts ------- > --- POWER (1) -------- (None) > --- PROPULSION (3) --- Aluminum Leg Aluminum Leg Aluminum Leg > --- UTILITY (2) ------ Large Storage Unit Visual Processing Unit > --- WEAPON (3) ------- Spread Laser Spread Laser Spread Laser > --- INVENTORY (15) --- Improved Ion Engine Heavy Ion Engine Aluminum Leg Aluminum Leg Aluminum Leg Improved Flight Unit Improved Flight Unit Improved Flight Unit Improved Flight Unit Improved Flight Unit Large Matter Pod (150) Improved Signal Interpreter Assault Cannon Assault Cannon Assault Cannon Peak State ------------ > --- POWER ------------ Light Ion Engine > --- PROPULSION ------- Aluminum Leg Aluminum Leg Aluminum Leg > --- UTILITY ---------- Large Storage Unit Visual Processing Unit > --- WEAPON ----------- Spread Laser Spread Laser Assault Cannon > --- INVENTORY -------- Improved Ion Engine Heavy Ion Engine Aluminum Leg Aluminum Leg Aluminum Leg Improved Flight Unit Improved Flight Unit Improved Flight Unit Improved Flight Unit Improved Flight Unit Large Matter Pod Improved Signal Interpreter Assault Cannon Assault Cannon [Rating: 17] Favorites ----------- Power Light Ion Engine Engine Light Ion Engine Propulsion Aluminum Leg Leg Aluminum Leg Flight Unit Improved Flight Unit Utility Large Storage Unit Device Seismic Detector Storage Large Storage Unit Processor Visual Processing Unit Weapon Spread Laser Energy Gun Spread Laser Ballistic Gun Assault Rifle Ballistic Cannon Assault Cannon Build | -11 -10 -9 -9 ------- Run | Yrd Mat Mat Min Slots Evolved 2 | . . 2 . Power . | . . . . Propulsion 1 | . . 1 . Utility . | . . . . Weapon 1 | . . 1 . Parts Attached 29 | 6 3 20 . Power 5 | 1 . 4 . Engine 5 | 1 . 4 . Core . | . . . . Reactor . | . . . . Propulsion 10 | 2 . 8 . Treads . | . . . . Leg 9 | 2 . 7 . Wheel . | . . . . Hover . | . . . . Flight 1 | . . 1 . Utility 5 | 1 3 1 . Device 1 | . 1 . . Storage 3 | 1 2 . . Processor 1 | . . 1 . Hackware . | . . . . Protection . | . . . . Artifact . | . . . . Weapon 9 | 2 . 7 . Energy Gun 4 | 1 . 3 . Energy Cannon . | . . . . Ballistic Gun 4 | 1 . 3 . Ballistic Cannon 1 | . . 1 . Launcher . | . . . . Special Weapon . | . . . . Impact Weapon . | . . . . Slashing Weapon . | . . . . Piercing Weapon . | . . . . Special Melee Weapon . | . . . . Unidentified Prototypes 2 | . . 2 . Parts Lost 5 | . . 4 1 Power 2 | . . 1 1 Propulsion 1 | . . 1 . Utility 1 | . . 1 . Weapon 1 | . . 1 . Highest Loss Streak 2 | . . 2 1 To Critical Strikes . | . . . . Average Backups 10 | 3 6 11 15 Power 1 | 1 2 2 2 Propulsion 3 | . . 3 8 Utility 2 | . 2 3 2 Weapon 2 | 1 2 2 3 Tool/Special . | . . . . Unused Backups 19 | 1 . 10 8 Power 2 | . . 2 . Propulsion 5 | . . 1 4 Utility 7 | 1 . 4 2 Weapon 5 | . . 3 2 Tool/Special . | . . . . Average Slot Usage (%) 88 | . 94 86 100 Engine 11 | . 14 10 11 Leg 28 | . 28 27 33 Device 2 | . 9 2 . Storage 11 | . 14 11 11 Processor 4 | . . 4 11 Energy Gun 20 | . 14 19 33 Ballistic Gun 9 | . 14 9 . Peak Build Rating 17 | 7 8 17 16 Average Rating 11 | 5 7 12 15 On Entrance 7 | . 6 8 16 Naked Turns . | . . . . Heaviest Build 32 | 12 28 32 32 Greatest Support 30 | 20 20 30 30 Greatest Overweight (x) 2 | . 1 2 1 Average Overweight (x) . | . . . . Largest Inventory Capacity 15 | 8 15 15 15 Average Capacity 11 | 7 8 12 15 Most Carried 15 | 7 8 15 15 Average Carried 10 | 3 6 11 15 Final Capacity 15 | 8 10 15 15 Final Carried 15 | 6 8 15 15 Class Distribution -------------------- 35% | Mutant 26% | Scavenger-Skirmisher 22% | Gunner 15% | Scavenger-Mutant Dominant Class ---------------- Mutant | -10/Materials Gunner | -9/Materials Scavenger-Skirmisher | -9/Mines Resources | -11 -10 -9 -9 ----------- Run | Yrd Mat Mat Min Matter Collected 1091 | 302 21 738 30 Remotely . | . . . . Salvage Created 1119 | 161 24 873 61 Parts 86 | 13 3 62 8 Haulers Intercepted 2 | . . 2 . Recyclers Shooed 2 | 1 . 1 . Parts Field Recycled . | . . . . Retrieved Matter . | . . . . Parts Self-Destructed . | . . . . Prevented . | . . . . Kills | -11 -10 -9 -9 ------- Run | Yrd Mat Mat Min Combat Hostiles Destroyed 22 | . . 17 5 Guns 22 | . . 17 5 Classes Destroyed 12 | 2 1 8 1 Worker 3 | . . 3 . Builder 2 | . . 2 . Tunneler 4 | 3 . 1 . Hauler 2 | . . 2 . Recycler 3 | 1 . 2 . Mechanic 1 | . . 1 . Watcher 3 | . 1 2 . Swarmer 8 | . . 4 4 Grunt 8 | . . 8 . Duelist 2 | . . 2 . Sentry 3 | . . 3 . Assembled 1 | . . . 1 Best Kill Streak 19 | 3 1 19 4 Combat Bots Only 6 | . . 6 4 Max Kills in Single Turn 2 | 1 1 2 2 Gunslinging 1 | . . 1 1 Exploded . | . . . . Melee . | . . . . Uniques/NPCs Destroyed . | . . . . Combat | -11 -10 -9 -9 -------- Run | Yrd Mat Mat Min Hostile Shots Fired 84 | . . 60 24 Missed 13 | . . 10 3 Hits 71 | . . 50 21 Melee 2 | . . 2 . Projectile 69 | . . 48 21 AOE 5 | . . . 5 Critical Strikes 1 | . . 1 . Damage Taken 1173 | . . 847 326 Core 414 | . . 325 89 Absorbed by Shields . | . . . . Core Remaining (%) 100 | 100 100 . . Volleys Fired 87 | 19 2 62 4 Largest 3 | 2 2 3 3 Hottest 195 | 60 60 195 195 Shots Fired 210 | 38 4 156 12 Gun 210 | 38 4 156 12 Cannon . | . . . . Launcher . | . . . . Special . | . . . . Kinetic 101 | 19 2 80 . Thermal 88 | . . 76 12 Explosive . | . . . . Electromagnetic 21 | 19 2 . . Robot Hit Streak 8 | 7 2 8 5 Robot Miss Streak 23 | 3 1 23 10 Penetration Max . | . . . . Secondary Targets 8 | . . 6 2 Max Gunslinging Chain 1 | . . 1 1 Shots Hit Robots 144 | 14 2 118 10 Core Hits 132 | 5 1 109 17 Critical Kills . | . . . . Critical Parts Destroyed . | . . . . Critical Strikes . | . . . . Melee Attacks . | . . . . Impact . | . . . . Slashing . | . . . . Piercing . | . . . . Sneak Attacks . | . . . . Combat Hostiles . | . . . . Follow-up Attacks . | . . . . Damage Inflicted 1956 | 198 39 1593 126 Guns 1952 | 198 39 1592 123 Cannons . | . . . . Explosions . | . . . . Melee . | . . . . Ramming 4 | . . 1 3 Kinetic 864 | 93 15 756 . Thermal 959 | . . 836 123 Explosive . | . . . . Electromagnetic 129 | 105 24 . . Impact . | . . . . Slashing . | . . . . Piercing . | . . . . Highest Corruption . | . . . . Average Corruption . | . . . . Corruption Purged . | . . . . Corruption Blocked . | . . . . Overload Shots . | . . . . Overflow Damage . | . . . . Projectiles . | . . . . Explosions . | . . . . Melee . | . . . . Knockbacks . | . . . . Impact . | . . . . Kinetic . | . . . . Secondary . | . . . . Self-Inflicted Damage . | . . . . Shots . | . . . . Rammed . | . . . . Targets Rammed 2 | . . 1 1 Kicked 2 | . . 1 1 Crushed . | . . . . Highest Temperature 629 | . . 629 355 Average Temperature 192 | . . 197 152 Received Heat Transfer 207 | . . 207 . Effects 34 | . . 34 . Shutdowns 5 | . . 5 . Energy Bleed 3 | . . 3 . Interference 8 | . . 8 . Matter Decay 3 | . . 3 . Short Circuit 2 | . . 2 . Damage (minor) 3 | . . 3 . Damage (major) 5 | . . 5 . Damage (core) 5 | . . 5 . Siege Activations . | . . . . Martial Activations . | . . . . Shielding Activations . | . . . . Robots Disrupted . | . . . . Combat Hostiles . | . . . . Robots Corrupted . | . . . . Combat Hostiles . | . . . . Parts Fried . | . . . . Impact Corruptions . | . . . . Robots Melted . | . . . . Combat Hostiles . | . . . . Parts Melted . | . . . . Heat Transferred 1180 | . . 1020 160 Parts Sabotaged . | . . . . Parts Stolen . | . . . . Parts Stripped . | . . . . Power Chain Reactions . | . . . . Alert | -11 -10 -9 -9 ------- Run | Yrd Mat Mat Min Maximum Alert Level 1 | . . 1 . Low Security (%) 81 | 100 100 71 100 Level 1 18 | . . 28 . Level 2 . | . . . . Level 3 . | . . . . Level 4 . | . . . . Level 5 . | . . . . High Security . | . . . . Max Security . | . . . . Peak Influence 244 | 10 7 244 140 Initial 60 | . . . 60 Average 112 | 1 . 153 104 Influence Increases 615 | 20 7 498 90 Destroy 0b10 Robot/C 420 | . . 340 80 Destroy 0b10 Robot/NC 90 | 20 5 65 . Destroy Leader 90 | . 2 78 10 Lose Combat Pursuer 15 | . . 15 . Influence Decreases 525 | 20 7 344 154 Entered New Map 94 | . . . 94 Time Decay 381 | 20 7 304 50 Lost Part 50 | . . 40 10 Squads Dispatched 1 | . . 1 . Investigation . | . . . . Extermination . | . . . . Reinforcement 1 | . . 1 . Assault . | . . . . Garrison . | . . . . Intercept . | . . . . Searches Triggered . | . . . . Construction Impeded . | . . . . Haulers Reinforced . | . . . . Active Scanning Responses . | . . . . Cargo Convoy Interrupts . | . . . . Stealth | -11 -10 -9 -9 --------- Run | Yrd Mat Mat Min Distress Signals 5 | . . 4 1 Communications Jammed . | . . . . Distress Signals . | . . . . Times Spotted 44 | . 1 31 12 Peak Tracking Total 9 | . 1 9 5 Tactical Retreats 2 | . . 1 1 Traps | -11 -10 -9 -9 ------- Run | Yrd Mat Mat Min Traps Triggered . | . . . . Indirectly . | . . . . Trap Hack Attempts . | . . . . Triggered . | . . . . Disarmed . | . . . . Reprogrammed . | . . . . Reused . | . . . . Traps Extracted . | . . . . Installed . | . . . . Triggered . | . . . . Machines | -11 -10 -9 -9 ---------- Run | Yrd Mat Mat Min Machines Disabled . | . . . . Max in Single Turn . | . . . . Machines Repaired . | . . . . Machines Dismantled . | . . . . Machines Sabotaged . | . . . . Overloaded Fab Kills . | . . . . Hacking | -11 -10 -9 -9 --------- Run | Yrd Mat Mat Min Machines Accessed . | . . . . Terminals . | . . . . Fabricators . | . . . . Repair Stations . | . . . . Recycling Units . | . . . . Scanalyzers . | . . . . Garrison Access . | . . . . Total Hacks . | . . . . Successful . | . . . . Failed . | . . . . Catastrophic . | . . . . Database Lockouts . | . . . . Manual . | . . . . Terminals . | . . . . Fabricators . | . . . . Repair Stations . | . . . . Recycling Units . | . . . . Scanalyzers . | . . . . Garrison Access . | . . . . Terminal Hacks . | . . . . Fabricator Hacks . | . . . . Repair Station Hacks . | . . . . Recycling Unit Hacks . | . . . . Scanalyzer . | . . . . Garrison Access Hacks . | . . . . Unauthorized Hacks . | . . . . Terminals . | . . . . Fabricators . | . . . . Repair Stations . | . . . . Recycling Units . | . . . . Scanalyzers . | . . . . Garrison Access . | . . . . Data Cores Recovered . | . . . . Used . | . . . . Hacking Detections . | . . . . Full Trace Events . | . . . . Feedback Events . | . . . . Feedback Blocked . | . . . . Robot Schematics Acquired . | . . . . Robots Built . | . . . . Authchips . | . . . . Time . | . . . . Total Robot Build Rating . | . . . . Part Schematics Acquired . | . . . . Parts Built . | . . . . Authchips . | . . . . Time . | . . . . Total Part Build Rating . | . . . . Parts Repaired . | . . . . Time . | . . . . Parts Recycled . | . . . . Recycled Matter . | . . . . Retrieved Matter . | . . . . Retrieved Components . | . . . . Parts Scanalyzed . | . . . . Part Schematics Acquired . | . . . . Parts Damaged . | . . . . Bothacking | -11 -10 -9 -9 ------------ Run | Yrd Mat Mat Min Used RIF Installer . | . . . . Robots Hacked . | . . . . Non-combat . | . . . . Combat . | . . . . Robot Hacks Applied . | . . . . Relay Couplers Released . | . . . . Fabnet Peak Effective % . | . . . . Robots Rewired . | . . . . Allies Hacked . | . . . . Hacks Repelled . | . . . . Allies | -11 -10 -9 -9 -------- Run | Yrd Mat Mat Min Total Allies . | . . . . Largest Group . | . . . . Highest-Rated Group . | . . . . Highest-Rated Ally . | . . . . Total Orders . | . . . . Ally Attacks . | . . . . Total Damage . | . . . . Kills . | . . . . Allies Corrupted . | . . . . Allies Melted . | . . . . Intel | -11 -10 -9 -9 ------- Run | Yrd Mat Mat Min Active Infowar (turns) 443 | . 89 250 104 Optics 206 | . . 102 104 Seismic 237 | . 89 148 . Robot Analysis Total . | . . . . Derelict Logs Recovered . | . . . . Drone Launches . | . . . . Drone Recoveries . | . . . . Exploration | -11 -10 -9 -9 ------------- Run | Yrd Mat Mat Min Turns Passed 1133 | 144 129 756 104 Spaces Moved 523 | 70 95 313 45 Core 23 | 23 . . . Treads . | . . . . Legs 500 | 47 95 313 45 Wheels . | . . . . Hover . | . . . . Flight . | . . . . Fastest Speed 50 | 50 120 120 120 Average Speed 145 | 97 121 157 188 Slowest Speed 260 | 120 190 260 190 Overloaded Moves . | . . . . Propulsion Burnouts . | . . . . Robots Hopped . | . . . . Potential Cave-ins . | . . . . Cave-ins Triggered . | . . . . Exploration Rate (%) 16 | 5 23 24 14 Regions Visited 3 Branch Regions 1 Pre-discovered Areas . | . . . . Known Exits Taken . | . . . . Unknown Exits Taken 3 | 1 1 1 . Scrap Searched 1 | . . . 1 Spaces Dug . | . . . . Terrain Destroyed . | . . . . Melee . | . . . . Projectile . | . . . . AOE . | . . . . Terrain Rammed . | . . . . Walls Destroyed . | . . . . Machines Disabled . | . . . . Actions | -11 -10 -9 -9 --------- Run | Yrd Mat Mat Min Total 725 | 108 104 459 54 Wait 7 | . . 3 4 Move 520 | 69 94 312 45 Hop . | . . . . Pick Up 50 | 13 4 33 . Fast Attach . | . . . . Attach 20 | 6 1 13 . Detach 2 | . . 2 . Swap 16 | . 2 14 . Drop 21 | 1 1 19 . Fire 87 | 19 2 62 4 Melee . | . . . . Ram . | . . . . Kick 2 | . . 1 1 Crush . | . . . . Escape Stasis . | . . . . Rewire . | . . . . Trap . | . . . . Miscellaneous . | . . . . Route ------- -11/Scrapyard -10/Materials -9/Materials -9/Mines History --------- Turn | Location | Event 10 | -11/Scrapyard | Discovered new exit (range 16) 145 | -11/Scrapyard | Entered Materials 234 | -10/Materials | Discovered new exit (range 16) 274 | -10/Materials | Entered another Materials area 274 | -9/Materials | Evolved 2 slots: Propulsion x1, Weapon x1 312 | -9/Materials | Build established: Mutant 526 | -9/Materials | Core integrity fell below 50% 903 | -9/Materials | Core integrity fell below 20% 986 | -9/Materials | Discovered new exit (range 15) 1030 | -9/Materials | Entered Mines 1089 | -9/Mines | Assembled infested the area 1094 | -9/Mines | Assisted by a Guerilla fighting off Assembled 1134 | -9/Mines | Destroyed by D-53 Grenadier with Mini Grenade Launcher Last Messages --------------- 01108_ HV Slug penetrates Wall. 01108_ as-62768 suffers critical hit (Destroy). 01108_ as-62768 destroyed. 01110_ HV Slug penetrates Wall. 01115_ as-86639 destroyed. 01115_ HV Slug penetrates as-32325. 01115_ as-32325 suffers critical hit (Destroy). 01115_ as-32325 knocked back. 01117_ as-60010 suffers critical hit (Destroy). 01117_ as-60010 destroyed. 01119_ KU-C5Q(h) destroyed. 01120_ U-05 Engineer builds a Wall. 01129_ C-30 ARC bursts open, deploying its payload. 01129_ D-53 Grenadier unfolds itself. 01129_ as-78842 destroyed. 01129_ as-44235 destroyed. 01129_ as-86696 destroyed. 01130_ T-07 Excavator destroyed. 01132_ Lgt. Ion Engine destroyed. 01134_ The unstable cave ceiling collapses. Map ----- +----------------------------------------------------+ | | | | | | | | | | | ???????????????????????????????????????????????? | | ??????????????????????????????????###??????????? | | ?????????????????????????????????# ##?????????? | | ????????????????????????????????# ###???????? | | ???????????????????????????????# ##??????? | | ?????????????????????????????## ##?????? | | ?????????????????????#########%= #?????? | | ?????????????????????# |%= ==%* #?????? | | ?????????????????????# [ =%[= ##?????? | | ?????????????????????# #####*% ##??????? | | ????????????????????## #??## ####???????? | | ??????????????????### #?## ##??????????? | | ??????????????????# ##?# ##???????????? | | ?????????????????# ##??# #????????????? | | ????????????????# #???# ##???????????? | | ??????????????? ###### #???????????? | | ??????????????### # # #???????????? | | ????????????????# ## # ##???????????? | | ????????????????## #?## # ##????????????? | | ?????????????????###??# ## #?????????????? | | ?????????????????????## @ #?????????????? | | ?????????????????????# d #?????????????? | | ?????????????????????# d #?????????????? | | ?????????????????????# ###?????????????? | | ?????????????????????# # ###???????????????? | | ????????????????????#; %;#####?????????????????? | | ???????????????????#; ??????????????????????? | | ???????????????????# ??????????????????????? | | ??????????????????# ##??????????????????????? | | ?????????????????# #????????????????????????? | | ????????????????# ?????????????????????????? | | ????????????????# % ?????????????????????????? | | ??????????????? ??????????????????????????? | | ???????????????## % ??????????????????????????? | | ????????????????## ??????????????????????????? | | ?????????????????? ???????????????????????????? | | ???????????????????????????????????????????????? | | ???????????????????????????????????????????????? | | ???????????????????????????????????????????????? | | ???????????????????????????????????????????????? | | ???????????????????????????????????????????????? | | ???????????????????????????????????????????????? | | ???????????????????????????????????????????????? | | ???????????????????????????????????????????????? | | ???????????????????????????????????????????????? | +----------------------------------------------------+ Best States ------------- Heat Dissipation 28 Energy Generation 14 Energy Capacity 280 Matter Stores 300 Matter Capacity 300 Sight Range 18 Terrain Scan Density 10 Evasion (%) 55 Item Schematics ----------------- None Robot Schematics ------------------ None Fabricated ------------ Nothing Repaired ---------- Nothing Alien Tech Used ----------------- None Achievements -------------- None Challenges ------------ None Game ------ Seed SalvagingCargoLattice Manual? 0 Play Time 00:13:16 Cumulative 23.5 hours Start 2025.08.16 @ 11:02:14 End 2025.08.16 @ 11:15:23 Sessions 1 Manual Loads 0 Difficulty Rogue Special Mode None Game No. 36 Rogue 36 Adventurer 0 Explorer 0 Win Type - Total 0 Types 0/0/0/0/0/0/0/0/0/0 Lore% 12 Gallery% 24 Achievement% 25 Wizard Run 0 Options --------- Layout 2 ASCII 0 Keyboard 0 Movement Numpad Keybinds 0 Fullscreen 1 Font 32/SmallcapsGlow Map View 77x44 Zoom Use 0% Tactical HUD 1 Map Filters NONE Filters NONE Steam 1 RUN: c5648a09-c3fc-4b8a-a5b5-4020b5cc8794